Cogmind - Beta 16 @@@ ROGUE MODE // 2025.10.29 @ 13:09:05 Player: ZLD1 Result: Self-destructed Performance ------------- Evolutions (1) 500 Regions Visited (2) 400 Robots Destroyed (5) 25 Value Destroyed (172) 172 Prototype IDs (0) 0 Alien Tech Used (0) 0 Bonus (200) 200 TOTAL SCORE: 1297 Bonus ------- Pacifist 200 Cogmind --------- Core Integrity 44/400 Matter 280/300 Energy 125/125 System Corruption 5% Temperature Cool (12) Movement Core (150) Ox2 Location -9/Materials Parts ------- > --- POWER (1) -------- Light Ion Engine > --- PROPULSION (2) --- (None) > --- UTILITY (4) ------ Small Storage Unit > --- WEAPON (2) ------- (None) > --- INVENTORY (8) ---- Seismic Detector Peak State ------------ > --- POWER ------------ Backup Power I > --- PROPULSION ------- Backup Propulsion I Backup Propulsion I > --- UTILITY ---------- Small Storage Unit Backup Plating I > --- WEAPON ----------- Backup Laser I Backup Laser I > --- INVENTORY -------- Light Ion Engine Aluminum Leg Seismic Detector [Rating: 7] Favorites ----------- Power Backup Power I Engine Backup Power I Propulsion Aluminum Leg Leg Aluminum Leg Hover Unit Backup Propulsion I Utility Small Storage Unit Storage Small Storage Unit Protection Backup Plating I Weapon Backup Laser I Energy Gun Backup Laser I Impact Weapon Hammer Build | -11 -10 -9 ------- Run | Yrd Mat Mat Slots Evolved 2 | . . 2 Power . | . . . Propulsion . | . . . Utility 2 | . . 2 Weapon . | . . . Parts Attached 8 | 4 . 4 Power 2 | 1 . 1 Engine 2 | 1 . 1 Core . | . . . Reactor . | . . . Propulsion 4 | 2 . 2 Treads . | . . . Leg 4 | 2 . 2 Wheel . | . . . Hover . | . . . Flight . | . . . Utility 1 | 1 . . Device . | . . . Storage 1 | 1 . . Processor . | . . . Hackware . | . . . Protection . | . . . Artifact . | . . . Weapon 1 | . . 1 Energy Gun . | . . . Energy Cannon . | . . . Ballistic Gun . | . . . Ballistic Cannon . | . . . Launcher . | . . . Special Weapon . | . . . Impact Weapon 1 | . . 1 Slashing Weapon . | . . . Piercing Weapon . | . . . Special Melee Weapon . | . . . Unidentified Prototypes . | . . . Parts Lost 12 | . 3 9 Power 2 | . 1 1 Propulsion 6 | . 2 4 Utility 1 | . . 1 Weapon 3 | . . 3 Highest Loss Streak 9 | . 3 9 To Critical Strikes . | . . . Average Backups 2 | 1 2 3 Power . | . 1 . Propulsion 1 | . . 1 Utility . | . . 1 Weapon . | . . . Tool/Special . | . . . Unused Backups 2 | . . 2 Power . | . . . Propulsion . | . . . Utility 2 | . . 2 Weapon . | . . . Tool/Special . | . . . Average Slot Usage (%) 55 | . 47 61 Engine 9 | . 9 9 Leg 10 | . 23 . Hover 7 | . . 13 Storage 12 | . 14 11 Protection 4 | . . 8 Energy Gun 10 | . . 17 Peak Build Rating 7 | 4 4 7 Average Rating 4 | 2 3 5 On Entrance 1 | . 4 1 Avg Prop Armor Cover (%) . | . . . Naked Turns . | . . . Heaviest Build 10 | 8 8 10 Greatest Support 20 | 20 20 20 Greatest Overweight (x) 2 | . 1 2 Average Overweight (x) . | . . . Largest Inventory Capacity 8 | 8 8 8 Average Capacity 7 | 6 8 8 Most Carried 5 | 5 4 5 Average Carried 2 | 1 2 3 Final Capacity 8 | 8 8 8 Final Carried 4 | 1 4 1 Class Distribution -------------------- 100% | Mutant Dominant Class ---------------- Mutant | -10/Materials Mutant | -9/Materials Resources | -11 -10 -9 ----------- Run | Yrd Mat Mat Matter Collected 240 | 240 . . Remotely . | . . . Salvage Created 218 | . . 218 Parts 12 | . . 12 Haulers Intercepted . | . . . Recyclers Shooed . | . . . Parts Field Recycled . | . . . Retrieved Matter . | . . . Parts Self-Destructed . | . . . Prevented . | . . . Parts Restored . | . . . Kills | -11 -10 -9 ------- Run | Yrd Mat Mat Combat Hostiles Destroyed 5 | . . 5 Melee 2 | . . 2 Guns 3 | . . 3 Classes Destroyed 2 | . . 2 Grunt 4 | . . 4 Brawler 1 | . . 1 Best Kill Streak 3 | . . 3 Combat Bots Only 3 | . . 3 Max Kills in Single Turn 1 | . . 1 Gunslinging . | . . . Exploded . | . . . Melee 1 | . . 1 Uniques/NPCs Destroyed . | . . . Combat | -11 -10 -9 -------- Run | Yrd Mat Mat Hostile Shots Fired 160 | . 55 105 Missed 47 | . 17 30 Hits 113 | . 38 75 Melee 3 | . . 3 Projectile 110 | . 38 72 Critical Strikes 1 | . . 1 Damage Taken 1506 | . 472 1034 Core 545 | . 189 356 Absorbed by Shields . | . . . Core Remaining (%) 62 | 100 24 . Volleys Fired 13 | . . 13 Largest 2 | . . 2 Hottest 60 | . . 60 Shots Fired 20 | . . 20 Gun 20 | . . 20 Cannon . | . . . Launcher . | . . . Special . | . . . Kinetic . | . . . Thermal 20 | . . 20 Explosive . | . . . Electromagnetic . | . . . Robot Hit Streak 7 | . . 7 Robot Miss Streak 1 | . . 1 Penetration Max . | . . . Secondary Targets . | . . . Shots Hit Robots 19 | . . 19 Core Hits 9 | . . 9 Critical Kills . | . . . Critical Parts Destroyed . | . . . Critical Strikes . | . . . Melee Attacks 5 | . . 5 Impact 5 | . . 5 Slashing . | . . . Piercing . | . . . Sneak Attacks . | . . . Combat Hostiles . | . . . Follow-up Attacks . | . . . Damage Inflicted 203 | . . 203 Guns 132 | . . 132 Cannons . | . . . Explosions . | . . . Melee 71 | . . 71 Ramming . | . . . Kinetic . | . . . Thermal 132 | . . 132 Explosive . | . . . Electromagnetic . | . . . Impact 71 | . . 71 Slashing . | . . . Piercing . | . . . Highest Corruption 5 | . . 5 Average Corruption 4 | . . 4 Corruption Purged . | . . . Corruption Blocked . | . . . Effects 2 | . . 2 Message Errors 1 | . . 1 Weapon Failures 1 | . . 1 Overload Shots . | . . . Overflow Damage . | . . . Projectiles . | . . . Explosions . | . . . Melee . | . . . Knockbacks . | . . . Impact . | . . . Kinetic . | . . . Secondary . | . . . Self-Inflicted Damage . | . . . Shots . | . . . Rammed . | . . . Targets Rammed . | . . . Kicked . | . . . Crushed . | . . . Highest Temperature 12 | . . 12 Average Temperature 5 | . . 5 Received Heat Transfer 660 | . 264 396 Siege Activations . | . . . Martial Activations . | . . . Shielding Activations . | . . . Robots Disrupted . | . . . Combat Hostiles . | . . . Robots Corrupted . | . . . Combat Hostiles . | . . . Parts Fried . | . . . Impact Corruptions . | . . . Robots Melted . | . . . Combat Hostiles . | . . . Parts Melted 4 | . . 4 Heat Transferred 555 | . . 555 Parts Sabotaged . | . . . Parts Stolen . | . . . Parts Stripped . | . . . Power Chain Reactions . | . . . Alert | -11 -10 -9 ------- Run | Yrd Mat Mat Maximum Alert Level . | . . . Low Security (%) 100 | 100 100 100 Level 1 . | . . . Level 2 . | . . . Level 3 . | . . . Level 4 . | . . . Level 5 . | . . . High Security . | . . . Max Security . | . . . Peak Influence 50 | . 15 50 Initial 5 | . . 5 Average 6 | . 1 10 Influence Increases 156 | . 30 126 Destroy 0b10 Robot/C 100 | . . 100 Destroy Leader 20 | . . 20 Successful Hack 6 | . . 6 Lose Combat Pursuer 30 | . 30 . Influence Decreases 146 | . 15 131 Entered New Map 10 | . . 10 Time Decay 86 | . 15 71 Lost Part 50 | . . 50 Squads Dispatched 1 | . . 1 Investigation 1 | . . 1 Extermination . | . . . Reinforcement . | . . . Assault . | . . . Garrison . | . . . Intercept . | . . . Searches Triggered . | . . . Construction Impeded . | . . . Haulers Reinforced . | . . . Active Scanning Responses . | . . . Cargo Convoy Interrupts . | . . . Stealth | -11 -10 -9 --------- Run | Yrd Mat Mat Distress Signals 5 | . 1 4 Communications Jammed . | . . . Distress Signals . | . . . Times Spotted 25 | . 7 18 Peak Tracking Total 14 | . 5 14 Tactical Retreats 2 | . 2 . Traps | -11 -10 -9 ------- Run | Yrd Mat Mat Traps Triggered . | . . . Indirectly . | . . . Trap Hack Attempts . | . . . Triggered . | . . . Disarmed . | . . . Reprogrammed . | . . . Reused . | . . . Traps Extracted . | . . . Installed . | . . . Triggered . | . . . Machines | -11 -10 -9 ---------- Run | Yrd Mat Mat Machines Disabled . | . . . Max in Single Turn . | . . . Machines Repaired . | . . . Machines Dismantled . | . . . Machines Sabotaged . | . . . Overloaded Fab Kills . | . . . Hacking | -11 -10 -9 --------- Run | Yrd Mat Mat Machines Accessed 2 | . . 2 Terminals 1 | . . 1 Fabricators . | . . . Repair Stations 1 | . . 1 Recycling Units . | . . . Scanalyzers . | . . . Garrison Access . | . . . Total Hacks 7 | . . 7 Successful 5 | . . 5 Failed 2 | . . 2 Catastrophic . | . . . Database Lockouts . | . . . Manual . | . . . Terminals 2 | . . 2 Fabricators . | . . . Repair Stations 5 | . . 5 Recycling Units . | . . . Scanalyzers . | . . . Garrison Access . | . . . Terminal Hacks 2 | . . 2 Record 1 | . . 1 Transport Status 1 | . . 1 Fabricator Hacks . | . . . Repair Station Hacks 3 | . . 3 Scan Component 2 | . . 2 Refit 1 | . . 1 Recycling Unit Hacks . | . . . Scanalyzer . | . . . Garrison Access Hacks . | . . . Unauthorized Hacks . | . . . Terminals . | . . . Fabricators . | . . . Repair Stations . | . . . Recycling Units . | . . . Scanalyzers . | . . . Garrison Access . | . . . Data Cores Recovered . | . . . Used . | . . . Hacking Detections 1 | . . 1 Full Trace Events 1 | . . 1 Feedback Events . | . . . Feedback Blocked . | . . . Robot Schematics Acquired . | . . . Robots Built . | . . . Authchips . | . . . Time . | . . . Total Robot Build Rating . | . . . Part Schematics Acquired . | . . . Parts Built . | . . . Authchips . | . . . Time . | . . . Total Part Build Rating . | . . . Part Studies Acquired . | . . . Parts Repaired . | . . . Time . | . . . Parts Recycled . | . . . Recycled Matter . | . . . Retrieved Matter . | . . . Retrieved Components . | . . . Parts Scanalyzed . | . . . Part Schematics Acquired . | . . . Parts Damaged . | . . . Bothacking | -11 -10 -9 ------------ Run | Yrd Mat Mat Used RIF Installer . | . . . Robots Hacked . | . . . Non-combat . | . . . Combat . | . . . Robot Hacks Applied . | . . . Relay Couplers Released . | . . . Fabnet Peak Effective % . | . . . Robots Rewired . | . . . Allies Hacked . | . . . Hacks Repelled . | . . . Allies | -11 -10 -9 -------- Run | Yrd Mat Mat Total Allies . | . . . Largest Group . | . . . Highest-Rated Group . | . . . Highest-Rated Ally . | . . . Total Orders . | . . . Ally Attacks . | . . . Total Damage . | . . . Kills . | . . . Allies Corrupted . | . . . Allies Melted . | . . . Intel | -11 -10 -9 ------- Run | Yrd Mat Mat Active Infowar (turns) . | . . . Robot Analysis Total . | . . . Derelict Logs Recovered . | . . . Drone Launches . | . . . Drone Recoveries . | . . . Exploration | -11 -10 -9 ------------- Run | Yrd Mat Mat Turns Passed 426 | 42 163 221 Spaces Moved 301 | 37 119 145 Core 56 | 15 25 16 Treads . | . . . Legs 118 | 22 94 2 Wheels . | . . . Hover 127 | . . 127 Flight . | . . . Fastest Speed 50 | 50 100 76 Average Speed 101 | 91 115 93 Slowest Speed 160 | 120 120 160 Overloaded Moves . | . . . Propulsion Burnouts . | . . . Robots Hopped . | . . . Potential Cave-ins . | . . . Cave-ins Triggered . | . . . Exploration Rate (%) 16 | 3 29 16 Regions Visited 2 Branch Regions . Pre-discovered Areas . | . . . Known Exits Taken . | . . . Unknown Exits Taken 2 | 1 1 . Scrap Searched . | . . . Spaces Dug . | . . . Terrain Destroyed . | . . . Melee . | . . . Projectile . | . . . AOE . | . . . Terrain Rammed . | . . . Walls Destroyed . | . . . Machines Disabled . | . . . Actions | -11 -10 -9 --------- Run | Yrd Mat Mat Total 390 | 45 144 201 Wait 54 | . 23 31 Move 299 | 36 118 145 Hop . | . . . Pick Up 10 | 5 3 2 Fast Attach . | . . . Attach 8 | 4 . 4 Detach . | . . . Swap . | . . . Drop 1 | . . 1 Fire 13 | . . 13 Melee 5 | . . 5 Ram . | . . . Kick . | . . . Crush . | . . . Escape Stasis . | . . . Rewire . | . . . Trap . | . . . Miscellaneous . | . . . Route ------- -11/Scrapyard -10/Materials -9/Materials History --------- Turn | Location | Event 4 | -11/Scrapyard | Discovered new exit (range 15) 43 | -11/Scrapyard | Entered Materials 183 | -10/Materials | Core integrity fell below 50% 193 | -10/Materials | Discovered new exit (range 12) 206 | -10/Materials | Entered another Materials area 206 | -9/Materials | Evolved 2 slots: Utility x2 213 | -9/Materials | Lost 3 parts (1p2n) 308 | -9/Materials | Build established: Mutant 410 | -9/Materials | Core integrity fell below 50% 427 | -9/Materials | Core integrity fell below 20% 427 | -9/Materials | Self-destructed Last Messages --------------- 00393_ Knocked back. 00395_ System corrupted: Backup Laser I failed to cycle. 00396_ B-36 Bruiser heat short circuits Rnf. Ion Engine. 00397_ B-36 Bruiser heat short circuits Lgt. Treads. 00400_ U-05 Engineer lays Concrete. 00401_ W-16 Scout sends out distress signal. 00403_ Broken Lgt. Treads melted. 00403_ B-36 Bruiser destroyed. 00406_ Acquired Hammer. 00409_ Backup Laser I destroyed. 00412_ R-06 Scavenger collects Broken Rnf. Ion Engine. 00412_ G-34 Mercenary destroyed. 00415_ R-06 Scavenger collects Ion Engine. 00417_ Critical hit (Burn: +37). 00418_ R-06 Scavenger collects Aluminum Leg. 00419_ Aluminum Leg destroyed. 00421_ XEAQ7BBGIQ00EHCZFNJS 00421_ R-06 Scavenger collects Aluminum Leg. 00423_ Aluminum Leg destroyed. 00425_ Hammer destroyed. Map ----- +----------------------------------------------------+ | ?????????????????????????????????????????????????? | | ?????????????????????????????????????????????????? | | ?????????????????????????????????????????????????? | | ?????????????????????????????????????????????????? | | ?????????????????????????????????????????????????? | | ?????????????????????????????????????????????????? | | ?????????????????????????????????????????????????? | | ?????????????????????????????????????????????????? | | ?????????????????????????????????????????????????? | | ?????????????????????????????????????????????????? | | ?????????????????????????????????????????????????? | | ?????????????????????????????????????????????????? | | ?????????????????????????????????????????????????? | | ?????????????????????????????????????????????????? | | ?????????????????????????????????????????????????? | | ?????????????????????????????????????????????????? | | ?????????????????????????????????????????????????? | | ?????????????????????????????????????????????????? | | ?????????????????????????????????????????????????? | | ?????????????????????????????????????????????????? | | ?????????????????????????????????????????????????? | | ???????????????????????????#######???????????????? | | ??????????#######/########## #???????????????? | | ????????? Ygg u % #???????????????? | | ????????? g %! Y " #???????????????? | | ????????? lg [ @Y #???????????????? | | ??????????## ######r######## #???????????????? | | ??????????????????#????????## ##???????????????? | | ????????????????????????????# #????????????????? | | ????????????????????????????# #????????????????? | | ????????????????????????????# #????????????????? | | ????????????????????????????# #????????????????? | | ????????????????????????????# #????????????????? | | ????????????????????????????# #????????????????? | | ????????????????????????????# #????????????????? | | ????????????????????????????# #????????????????? | | ????????????????????????????# #????????????????? | | ????????????????????????????# #????????????????? | | ????????????????????????????# #????????????????? | | ????????????????????????????# #????????????????? | | ????????????????????????????# #????###?????????? | | ????????????????????????????# #?? #?????????? | | ????????????????????????????# #? #?????????? | | ????????????????????????????# # """ #?????????? | | ????????????????????????????# + """ #?????????? | | ????????????????????????????# # """ #?????????? | | ????????????????????????????# # #?????????? | | ???????????????????????????## ########?? ##???? | | ???????????????????????????# ####### #???? | | ???????????????????????????# #???? | +----------------------------------------------------+ Best States ------------- Heat Dissipation 28 Energy Generation 10 Energy Capacity 125 Matter Stores 300 Matter Capacity 300 Sight Range 16 Terrain Scan Density 10 Armor Coverage 80 Evasion (%) 55 Item Schematics ----------------- None Robot Schematics ------------------ None Fabricated ------------ Nothing Repaired ---------- Nothing Studied --------- None Alien Tech Used ----------------- None Achievements -------------- Fitting Room Challenges ------------ None Game ------ Seed ControlWaveClaw Manual? 0 Play Time 00:06:31 Cumulative 65.0 hours Start 2025.10.29 @ 13:05:01 End 2025.10.29 @ 13:09:05 Sessions 1 Manual Loads 0 Difficulty Rogue Special Mode None Game No. 153 Rogue 153 Adventurer 0 Explorer 0 Win Type - Total 1 Types 1/0/0/0/0/0/0/0/0/0 Lore% 33 Gallery% 37 Achievement% 20 Wizard Run 0 Options --------- Layout 1 ASCII 0 Keyboard 0 Movement Mouse Keybinds 0 Fullscreen 0 Font 24/Smallcaps Map View 59x39 Zoom Use 0% Tactical HUD 1 Map Filters NONE Filters NONE Steam 1 RUN: 9460692e-d84c-4a40-85c1-5b047d9fd54b